Cogmind - Beta 13 @@@ ROGUE MODE // 2024.03.12 @ 16:05:56 Player: Smirk Result: Destroyed by S-27 Virus with Autogun Performance ------------- Evolutions (6) 3000 Regions Visited (8) 1600 Robots Destroyed (14) 70 Value Destroyed (254) 254 Prototype IDs (3) 60 Alien Tech Used (0) 0 Bonus (0) 0 TOTAL SCORE: 4984 Bonus ------- None Cogmind --------- Core Integrity 0/1150 Matter 90/300 Energy 98/100 System Corruption 1% Temperature Cool (0) Movement Core (50) Location -4/Upper Caves Parts ------- > --- POWER (2) -------- (None) > --- PROPULSION (6) --- (None) > --- UTILITY (9) ------ Improved Signal Interpreter > --- WEAPON (2) ------- (None) > --- INVENTORY (5) ---- Cold Fusion Reactor Improved Light Cannon Peak State ------------ > --- POWER ------------ Cold Fusion Reactor > --- PROPULSION ------- Combat Airjet Combat Airjet > --- UTILITY ---------- Power Amplifier Improved Signal Interpreter > --- WEAPON ----------- (None) > --- INVENTORY -------- Sensor Array Medium Laser Improved Light Cannon [Rating: 24] Favorites ----------- Power Light Ion Engine Engine Light Ion Engine Reactor Cold Fusion Reactor Propulsion Flight Unit Wheel Wheel Hover Unit Combat Airjet Flight Unit Flight Unit Utility Improved Signal Interpreter Device Sensor Array Storage Small Storage Unit Processor Improved Signal Interpreter Weapon Light Assault Rifle Energy Gun Medium Laser Ballistic Gun Light Assault Rifle Launcher Grenade Launcher Build | -11 -10 -9 -8 -7 -6 -5 -4 -4 ------- Run | Yrd Mat Mat Mat Fac Fac Fac Fac Upp Slots Evolved 12 | . . 2 2 2 2 2 2 . Power 1 | . . . 1 . . . . . Propulsion 4 | . . 1 . . 1 1 1 . Utility 7 | . . 1 1 2 1 1 1 . Weapon . | . . . . . . . . . Parts Attached 33 | 4 6 9 4 3 4 1 2 . Power 6 | 1 . 2 1 1 . 1 . . Engine 5 | 1 . 2 1 1 . . . . Core . | . . . . . . . . . Reactor 1 | . . . . . . 1 . . Propulsion 10 | 2 3 2 . 1 2 . . . Treads . | . . . . . . . . . Leg . | . . . . . . . . . Wheel 2 | 2 . . . . . . . . Hover 2 | . . . . . 2 . . . Flight 6 | . 3 2 . 1 . . . . Utility 9 | . 1 3 2 1 1 . 1 . Device 7 | . . 3 1 1 1 . 1 . Storage 1 | . 1 . . . . . . . Processor 1 | . . . 1 . . . . . Hackware . | . . . . . . . . . Protection . | . . . . . . . . . Artifact . | . . . . . . . . . Weapon 8 | 1 2 2 1 . 1 . 1 . Energy Gun 3 | . . 1 . . 1 . 1 . Energy Cannon . | . . . . . . . . . Ballistic Gun 2 | 1 1 . . . . . . . Ballistic Cannon . | . . . . . . . . . Launcher 3 | . 1 1 1 . . . . . Special Weapon . | . . . . . . . . . Impact Weapon . | . . . . . . . . . Slashing Weapon . | . . . . . . . . . Piercing Weapon . | . . . . . . . . . Special Melee Weapon . | . . . . . . . . . Unidentified Prototypes 1 | . . . . . . 1 . . Parts Lost 16 | 1 . 2 2 6 1 2 . 2 Power 3 | . . 1 . 2 . . . . Propulsion 6 | 1 . 1 1 2 . 1 . . Utility 4 | . . . . 2 . 1 . 1 Weapon 3 | . . . 1 . 1 . . 1 Highest Loss Streak 6 | 1 . 2 2 6 1 2 . 2 To Critical Strikes . | . . . . . . . . . Average Slot Usage (%) 36 | . 63 79 68 32 20 15 8 13 Engine 4 | . 14 11 9 5 . . . . Hover 1 | . . . . . 8 6 . . Flight 9 | . 16 32 22 6 . . . . Device 8 | . . 19 27 11 3 2 1 4 Processor 4 | . . . 6 7 6 5 5 5 Energy Gun 1 | . . 4 2 . . . 1 4 Ballistic Gun 3 | . 23 5 . . . . . . Launcher 1 | . 3 7 1 . . . . . Naked Turns . | . . . . . . . . . Heaviest Build 14 | 4 7 14 11 8 4 13 3 3 Greatest Support 24 | 20 10 12 12 8 24 24 3 3 Greatest Overweight (x) 1 | . 1 1 . 1 . 1 . . Average Overweight (x) . | . . . . . . . . . Largest Inventory Capacity 8 | 5 8 5 5 5 5 5 5 5 Average Capacity 5 | 5 5 5 5 5 5 5 5 5 Most Carried 5 | 3 5 5 5 5 4 5 5 2 Average Carried 3 | 1 3 4 4 4 3 3 3 2 Final Capacity 5 | 5 5 5 5 5 5 5 5 5 Final Carried 5 | 2 5 5 5 4 3 5 2 2 Class Distribution -------------------- 100% | Mutant Dominant Class ---------------- Mutant | -10/Materials Mutant | -9/Materials Mutant | -8/Materials Mutant | -7/Factory Mutant | -6/Factory Mutant | -5/Factory Mutant | -4/Factory Mutant | -4/Upper Caves Resources | -11 -10 -9 -8 -7 -6 -5 -4 -4 ----------- Run | Yrd Mat Mat Mat Fac Fac Fac Fac Upp Matter Collected 444 | 248 53 39 . 82 . . 5 17 Remotely . | . . . . . . . . . Salvage Created 310 | 35 234 41 . . . . . . Parts 27 | . 19 8 . . . . . . Haulers Intercepted . | . . . . . . . . . Recyclers Shooed 1 | . 1 . . . . . . . Parts Field Recycled . | . . . . . . . . . Retrieved Matter . | . . . . . . . . . Parts Self-Destructed . | . . . . . . . . . Prevented . | . . . . . . . . . Kills | -11 -10 -9 -8 -7 -6 -5 -4 -4 ------- Run | Yrd Mat Mat Mat Fac Fac Fac Fac Upp Combat Hostiles Destroyed 12 | 1 8 3 . . . . . . Guns 5 | 1 4 . . . . . . . AOE 7 | . 4 3 . . . . . . Classes Destroyed 4 | 1 2 1 . . . . . . Recycler 1 | . 1 . . . . . . . Watcher 1 | . . 1 . . . . . . Swarmer 9 | . 6 3 . . . . . . Grunt 3 | 1 2 . . . . . . . Best Kill Streak 5 | 1 5 3 . . . . . . Combat Bots Only 4 | 1 4 3 . . . . . . Max Kills in Single Turn 3 | 1 2 3 . . . . . . Gunslinging . | . . . . . . . . . Exploded 3 | . 2 3 . . . . . . Melee . | . . . . . . . . . Uniques/NPCs Destroyed . | . . . . . . . . . Combat | -11 -10 -9 -8 -7 -6 -5 -4 -4 -------- Run | Yrd Mat Mat Mat Fac Fac Fac Fac Upp Hostile Shots Fired 387 | 14 15 6 15 64 141 33 38 61 Missed 181 | 4 8 4 9 28 74 14 18 22 Damage Taken 3128 | 114 79 66 141 480 689 300 663 596 Core 2140 | 23 . 25 31 308 396 207 600 550 Absorbed by Shields 58 | . . . 52 6 . . . . Core Remaining (%) 79 | 90 90 93 94 56 53 79 . . Volleys Fired 48 | 13 19 5 8 . 3 . . . Largest 2 | 1 2 1 1 . 1 . . . Hottest 45 | 20 40 45 30 . 45 . . . Shots Fired 58 | 13 29 5 8 . 3 . . . Gun 40 | 13 23 1 . . 3 . . . Cannon . | . . . . . . . . . Launcher 18 | . 6 4 8 . . . . . Special . | . . . . . . . . . Kinetic 36 | 13 23 . . . . . . . Thermal . | . . . . . . . . . Explosive 18 | . 6 4 8 . . . . . Electromagnetic 4 | . . 1 . . 3 . . . Robot Hit Streak 7 | 7 5 2 2 . 2 . . . Robot Miss Streak 2 | 1 1 2 2 . 2 . . . Penetration Max . | . . . . . . . . . Secondary Targets 1 | . 1 . . . . . . . Max Gunslinging Chain 1 | . 1 . . . . . . . Shots Hit Robots 34 | 10 19 1 2 . 2 . . . Core Hits 25 | 3 14 4 2 . 2 . . . Critical Kills . | . . . . . . . . . Critical Parts Destroyed . | . . . . . . . . . Critical Strikes . | . . . . . . . . . Melee Attacks . | . . . . . . . . . Impact . | . . . . . . . . . Slashing . | . . . . . . . . . Piercing . | . . . . . . . . . Sneak Attacks . | . . . . . . . . . Combat Hostiles . | . . . . . . . . . Follow-up Attacks . | . . . . . . . . . Damage Inflicted 742 | 78 416 148 64 1 31 . 4 . Guns 250 | 78 132 16 . . 24 . . . Cannons . | . . . . . . . . . Explosions 480 | . 284 132 64 . . . . . Melee . | . . . . . . . . . Ramming 12 | . . . . 1 7 . 4 . Kinetic 210 | 78 132 . . . . . . . Thermal . | . . . . . . . . . Explosive 480 | . 284 132 64 . . . . . Electromagnetic 40 | . . 16 . . 24 . . . Impact . | . . . . . . . . . Slashing . | . . . . . . . . . Piercing . | . . . . . . . . . Highest Corruption 1 | . . . . 1 . . 1 1 Average Corruption 1 | . . . . 1 . . 1 1 Corruption Purged . | . . . . . . . . . Corruption Blocked . | . . . . . . . . . Effects 2 | . . . . 1 . . . 1 Matter Fused 1 | . . . . 1 . . . . Heat Flow Errors 1 | . . . . . . . . 1 Overload Shots . | . . . . . . . . . Overflow Damage 21 | . 11 10 . . . . . . Projectiles . | . . . . . . . . . Explosions 21 | . 11 10 . . . . . . Melee . | . . . . . . . . . Knockbacks . | . . . . . . . . . Impact . | . . . . . . . . . Kinetic . | . . . . . . . . . Secondary . | . . . . . . . . . Self-Inflicted Damage 184 | . 19 53 107 . 3 . 2 . Shots 9 | . 1 3 5 . . . . . Rammed 5 | . . . . 1 3 . 1 . Targets Rammed 5 | . . . . 1 3 . 1 . Kicked . | . . . . . . . . . Crushed . | . . . . . . . . . Highest Temperature 210 | 6 10 4 4 4 3 . . 210 Average Temperature 29 | 6 4 3 4 4 3 . . 124 Received Heat Transfer 667 | 60 6 . 30 198 246 . 127 . Siege Activations . | . . . . . . . . . Robots Corrupted . | . . . . . . . . . Combat Hostiles . | . . . . . . . . . Parts Fried . | . . . . . . . . . Impact Corruptions . | . . . . . . . . . Robots Melted . | . . . . . . . . . Combat Hostiles . | . . . . . . . . . Parts Melted . | . . . . . . . . . Heat Transferred . | . . . . . . . . . Parts Sabotaged . | . . . . . . . . . Parts Stolen . | . . . . . . . . . Parts Stripped . | . . . . . . . . . Power Chain Reactions . | . . . . . . . . . Alert | -11 -10 -9 -8 -7 -6 -5 -4 -4 ------- Run | Yrd Mat Mat Mat Fac Fac Fac Fac Upp Peak Influence 334 | 20 334 260 202 103 98 62 142 . Initial 141 | . 13 141 109 91 28 47 20 . Average 100 | 2 147 214 150 95 54 49 66 . Maximum Alert Level 1 | . 1 1 1 . . . . . Low Security (%) 87 | 100 75 23 97 100 100 100 100 . Level 1 12 | . 24 76 2 . . . . . Level 2 . | . . . . . . . . . Level 3 . | . . . . . . . . . Level 4 . | . . . . . . . . . Level 5 . | . . . . . . . . . High Security . | . . . . . . . . . Max Security . | . . . . . . . . . Squads Dispatched 11 | . 1 . 2 3 2 1 2 . Investigation 6 | . . . 1 2 2 . 1 . Extermination 1 | . . . . 1 . . . . Reinforcement 4 | . 1 . 1 . . 1 1 . Assault . | . . . . . . . . . Garrison . | . . . . . . . . . Intercept . | . . . . . . . . . Searches Triggered . | . . . . . . . . . Construction Impeded . | . . . . . . . . . Haulers Reinforced . | . . . . . . . . . Active Scanning Responses . | . . . . . . . . . Cargo Convoy Interrupts . | . . . . . . . . . Stealth | -11 -10 -9 -8 -7 -6 -5 -4 -4 --------- Run | Yrd Mat Mat Mat Fac Fac Fac Fac Upp Distress Signals 4 | . 3 . . . 1 . . . Communications Jammed . | . . . . . . . . . Distress Signals . | . . . . . . . . . Times Spotted 75 | 1 11 3 10 10 9 3 11 17 Peak Tracking Total 15 | 1 6 3 9 9 6 2 7 15 Tactical Retreats 9 | . . . 2 1 2 . 2 2 Traps | -11 -10 -9 -8 -7 -6 -5 -4 -4 ------- Run | Yrd Mat Mat Mat Fac Fac Fac Fac Upp Traps Triggered 1 | . . . . 1 . . . . Indirectly . | . . . . . . . . . Trap Hack Attempts . | . . . . . . . . . Triggered . | . . . . . . . . . Disarmed . | . . . . . . . . . Reprogrammed . | . . . . . . . . . Reused . | . . . . . . . . . Traps Extracted . | . . . . . . . . . Installed . | . . . . . . . . . Triggered . | . . . . . . . . . Machines | -11 -10 -9 -8 -7 -6 -5 -4 -4 ---------- Run | Yrd Mat Mat Mat Fac Fac Fac Fac Upp Machines Disabled 4 | . 2 . 2 . . . . . Max in Single Turn 1 | . 1 . 1 . . . . . Machines Repaired . | . . . . . . . . . Machines Dismantled . | . . . . . . . . . Machines Sabotaged . | . . . . . . . . . Overloaded Fab Kills . | . . . . . . . . . Hacking | -11 -10 -9 -8 -7 -6 -5 -4 -4 --------- Run | Yrd Mat Mat Mat Fac Fac Fac Fac Upp Machines Accessed 16 | . 2 3 4 2 3 . 2 . Terminals 14 | . 2 3 3 1 3 . 2 . Fabricators . | . . . . . . . . . Repair Stations . | . . . . . . . . . Recycling Units . | . . . . . . . . . Scanalyzers 2 | . . . 1 1 . . . . Garrison Access . | . . . . . . . . . Total Hacks 48 | . 4 14 10 6 9 . 5 . Successful 25 | . 2 8 6 3 3 . 3 . Failed 21 | . 2 6 3 3 6 . 1 . Catastrophic 2 | . . . . 1 1 . . . Database Lockouts 2 | . . . 1 . . . 1 . Manual 22 | . . 2 8 3 6 . 3 . Terminals 44 | . 4 14 8 4 9 . 5 . Fabricators . | . . . . . . . . . Repair Stations . | . . . . . . . . . Recycling Units . | . . . . . . . . . Scanalyzers 4 | . . . 2 2 . . . . Garrison Access . | . . . . . . . . . Terminal Hacks 22 | . 2 8 4 2 3 . 3 . Record 12 | . . 1 4 2 2 . 3 . Prototype ID Bank 1 | . . 1 . . . . . . Alert Level 1 | . . 1 . . . . . . Unreport Threat 1 | . . . . . 1 . . . Locate Traps 2 | . . 2 . . . . . . Security Status 1 | . . 1 . . . . . . Reinforcement Status 1 | . . 1 . . . . . . Recall Investigation 1 | . 1 . . . . . . . Hauler Manifests 1 | . . 1 . . . . . . Zone Layout 1 | . 1 . . . . . . . Fabricator Hacks . | . . . . . . . . . Repair Station Hacks . | . . . . . . . . . Recycling Unit Hacks . | . . . . . . . . . Scanalyzer 3 | . . . 2 1 . . . . Insert Component 2 | . . . 1 1 . . . . Analyze 1 | . . . 1 . . . . . Garrison Access Hacks . | . . . . . . . . . Unauthorized Hacks . | . . . . . . . . . Terminals . | . . . . . . . . . Fabricators . | . . . . . . . . . Repair Stations . | . . . . . . . . . Recycling Units . | . . . . . . . . . Scanalyzers . | . . . . . . . . . Garrison Access . | . . . . . . . . . Data Cores Recovered . | . . . . . . . . . Used . | . . . . . . . . . Hacking Detections 14 | . 2 3 2 2 3 . 2 . Full Trace Events 5 | . . . 1 1 2 . 1 . Feedback Events 1 | . . . . 1 . . . . Corruption 1 | . . . . 1 . . . . Feedback Blocked . | . . . . . . . . . Robot Schematics Acquired . | . . . . . . . . . Robots Built . | . . . . . . . . . Authchips . | . . . . . . . . . Time . | . . . . . . . . . Total Robot Build Rating . | . . . . . . . . . Part Schematics Acquired 1 | . . . 1 . . . . . Parts Built . | . . . . . . . . . Authchips . | . . . . . . . . . Time . | . . . . . . . . . Total Part Build Rating . | . . . . . . . . . Parts Repaired . | . . . . . . . . . Time . | . . . . . . . . . Parts Recycled . | . . . . . . . . . Recycled Matter . | . . . . . . . . . Retrieved Matter . | . . . . . . . . . Retrieved Components . | . . . . . . . . . Parts Scanalyzed 2 | . . . 1 1 . . . . Part Schematics Acquired 1 | . . . 1 . . . . . Parts Damaged 1 | . . . . 1 . . . . Bothacking | -11 -10 -9 -8 -7 -6 -5 -4 -4 ------------ Run | Yrd Mat Mat Mat Fac Fac Fac Fac Upp Used RIF Installer . | . . . . . . . . . Robots Hacked . | . . . . . . . . . Non-combat . | . . . . . . . . . Combat . | . . . . . . . . . Robot Hacks Applied . | . . . . . . . . . Relay Couplers Released . | . . . . . . . . . Fabnet Peak Effective % . | . . . . . . . . . Robots Rewired . | . . . . . . . . . Allies Hacked . | . . . . . . . . . Hacks Repelled . | . . . . . . . . . Allies | -11 -10 -9 -8 -7 -6 -5 -4 -4 -------- Run | Yrd Mat Mat Mat Fac Fac Fac Fac Upp Total Allies . | . . . . . . . . . Largest Group . | . . . . . . . . . Highest-Rated Group . | . . . . . . . . . Highest-Rated Ally . | . . . . . . . . . Total Orders . | . . . . . . . . . Ally Attacks . | . . . . . . . . . Total Damage . | . . . . . . . . . Kills . | . . . . . . . . . Allies Corrupted . | . . . . . . . . . Allies Melted . | . . . . . . . . . Intel | -11 -10 -9 -8 -7 -6 -5 -4 -4 ------- Run | Yrd Mat Mat Mat Fac Fac Fac Fac Upp Robot Analysis Total . | . . . . . . . . . Derelict Logs Recovered 1 | . . . . . . . . 1 Drone Launches . | . . . . . . . . . Drone Recoveries . | . . . . . . . . . Exploration | -11 -10 -9 -8 -7 -6 -5 -4 -4 ------------- Run | Yrd Mat Mat Mat Fac Fac Fac Fac Upp Turns Passed 1401 | 92 156 146 105 319 183 88 167 145 Spaces Moved 2103 | 80 199 226 231 387 258 120 328 274 Core 844 | 18 . . . 57 112 55 328 274 Treads . | . . . . . . . . . Legs . | . . . . . . . . . Wheels 101 | 62 39 . . . . . . . Hover 211 | . . . . . 146 65 . . Flight 947 | . 160 226 231 330 . . . . Fastest Speed 34 | 50 37 34 34 35 50 50 50 50 Average Speed 55 | 73 48 34 35 79 65 65 50 50 Slowest Speed 150 | 80 120 114 37 120 80 150 50 50 Overloaded Moves . | . . . . . . . . . Propulsion Burnouts . | . . . . . . . . . Robots Hopped 14 | . 4 1 5 4 . . . . Cave-ins Triggered . | . . . . . . . . . Exploration Rate (%) 19 | 5 34 23 28 12 11 5 16 45 Regions Visited 8 Branch Regions 1 Pre-discovered Areas . | . . . . . . . . . Known Exits Taken 5 | . . . 1 1 1 1 1 . Unknown Exits Taken 3 | 1 1 1 . . . . . . Scrap Searched 2 | . . . . . . . . 2 Spaces Dug 47 | . 14 8 25 . . . . . Terrain Destroyed 100 | . 27 29 44 . . . . . Melee . | . . . . . . . . . Projectile . | . . . . . . . . . AOE 100 | . 27 29 44 . . . . . Terrain Rammed . | . . . . . . . . . Walls Destroyed . | . . . . . . . . . Machines Disabled . | . . . . . . . . . Actions | -11 -10 -9 -8 -7 -6 -5 -4 -4 --------- Run | Yrd Mat Mat Mat Fac Fac Fac Fac Upp Total 2262 | 101 229 288 239 396 267 129 331 282 Wait 61 | 2 1 38 . 5 . 7 . 8 Move 2069 | 79 191 223 220 378 257 119 328 274 Hop 13 | . 3 1 5 4 . . . . Pick Up 12 | 3 4 5 . . . . . . Fast Attach 17 | 3 4 3 2 1 3 1 . . Attach 13 | 1 1 5 1 2 1 . 2 . Detach 11 | . 2 3 1 3 . 2 . . Swap 3 | . 1 1 1 . . . . . Drop 11 | . 3 4 1 2 . . 1 . Fire 48 | 13 19 5 8 . 3 . . . Melee . | . . . . . . . . . Ram 4 | . . . . 1 3 . . . Kick . | . . . . . . . . . Crush . | . . . . . . . . . Escape Stasis . | . . . . . . . . . Rewire . | . . . . . . . . . Trap . | . . . . . . . . . Miscellaneous . | . . . . . . . . . Route ------- -11/Scrapyard -10/Materials -9/Materials -8/Materials -7/Factory (discovered 2 exits: *Fac x2) -6/Factory -5/Factory -4/Factory -4/Upper Caves History --------- Turn | Location | Event 2 | -11/Scrapyard | Met Revision 17 43 | -11/Scrapyard | Discovered new exit (range 8) 93 | -11/Scrapyard | Entered Materials 235 | -10/Materials | Discovered new exit (range 16) 249 | -10/Materials | Entered another Materials area 249 | -9/Materials | Evolved 2 slots: Propulsion x1, Utility x1 363 | -9/Materials | Build established: Mutant 381 | -9/Materials | Discovered new exit (range 16) 395 | -9/Materials | Entered another Materials area 395 | -8/Materials | Evolved 2 slots: Power x1, Utility x1 476 | -8/Materials | Central database locked down 488 | -8/Materials | Discovered new exit (range 16) 500 | -8/Materials | Identified exit to Factory 500 | -8/Materials | Entered Factory 500 | -7/Factory | Evolved 2 slots: Utility x2 670 | -7/Factory | Discovered new exit (range 7) 721 | -7/Factory | Identified exit to Factory 817 | -7/Factory | Discovered exit to Factory (range 5) 819 | -7/Factory | Entered another Factory area 819 | -6/Factory | Evolved 2 slots: Propulsion x1, Utility x1 827 | -6/Factory | Lost 6 parts (2p2n2u) 990 | -6/Factory | Discovered new exit (range 13) 1001 | -6/Factory | Identified exit to Factory 1002 | -6/Factory | Entered another Factory area 1002 | -5/Factory | Evolved 2 slots: Propulsion x1, Utility x1 1074 | -5/Factory | Discovered new exit (range 11) 1088 | -5/Factory | Identified exit to Factory 1090 | -5/Factory | Entered another Factory area 1090 | -4/Factory | Evolved 2 slots: Propulsion x1, Utility x1 1217 | -4/Factory | Core integrity fell below 50% 1255 | -4/Factory | Central database locked down 1256 | -4/Factory | Discovered new exit (range 3) 1257 | -4/Factory | Identified exit to Upper Caves 1257 | -4/Factory | Entered Upper Caves 1393 | -4/Upper Caves | Core integrity fell below 20% 1402 | -4/Upper Caves | Destroyed by S-27 Virus with Autogun Last Messages --------------- 01257_ EXIT=IDENTIFIED: UPPER CAVES 01257_ Slammed into Y-64 Sentinel. LOCATION=UPPER CAVES GOAL=ESCAPE 01269_ Acquired derelict log, extracted data. Data stored: Armory entrances (x1). 01327_ Searching scrap... 01327_ Found Armor Integrity Analyzer. 01327_ Found Mak. Leg. 01327_ Found 17 Matter. 01330_ Acquired 17 matter. 01343_ System corrupted: Heat flow error (+253). 01354_ B-60 Warrior springs to life. 01354_ G-67 Veteran springs to life. 01355_ B-60 Warrior springs to life. 01371_ Med. Laser destroyed. 01374_ Sensor Array destroyed. 01399_ Searching scrap... 01399_ Found Matter Compressor. 01399_ Found 20 Matter. Map ----- +----------------------------------------------------+ | ?????????????????????????????????????????????????? | | ?????????????????????????????????????????????????? | | ?????????????????????????????????????????????????? | | ?????????????????????????????????????????????????? | | ????????????????????????????? ???????????????????? | | ????????????????????????????? ???????????????????? | | ????????????????????????????? ???????????????????? | | ??????????????????? ???????? ???????????????????? | | ??????????????????? ????### ???????????????????? | | ???????????????????? #??## ???????????????????? | | ????????????????????? ### ??????????????????? | | ????????????????? ?? ?????####??????????? | | ???????????????? ??# ???### ##?????????? | | ??????????????? #??# ??## #?????????? | | ??????????????? #??# ?## #?????????? | | ??????????????# ??# #?# #?????????? | | ??????????????# ### ### ##????????? | | ?????????????# ! ##???????? | | ????????????? % #???????? | | ????????????? s##### # #???????? | | ????????????? s#???## # ##???????? | | ????????????? s ###??# # #????????? | | ????????????? ### #??# ##???????? | | ?????????????? ????# ##?## ##??????? | | ?????????????????# ## #??# ##?????? | | ?????????????????# @ #??## ###???? | | ?????????????????### ####???### ##### | | ???????????????????### #????????# # | | ?????????????????????# #???????## | | ?????????????????????# #???????# | | ????????????????????? ##???????# ## | | ???????????????????? ###????????## #?### | | ??????????????????? ###????????????# ###??# | | ??????????????????# ???????????????# ##?? | | ??????????????????##????????????????# ### | | ????????????????????????????????????# | | ????????????????????????????????????### | | ????????????????????????????????????#### | | ???????????????????????????????????##" # | | ???????????????????????????????????#"" ## | | ??????????????????????????????????#"""" #? | | ??????????????????????????????????#""#" ## | | ??????????????????????????????????##### | | ?????????????????????????????????????# | | ?????????????????????????????????????# ### ### | | ????????????????????????????????????# #?###?? | | ????????????????????????????????????# ?????? | | ???????????????????????????????????# ?????? | | ???????????????????????????????????# #?????? | | ???????????????????????????????????# #####?????? | +----------------------------------------------------+ Best States ------------- Heat Dissipation 43 Energy Generation 19 Energy Capacity 200 Matter Stores 300 Matter Capacity 300 Sight Range 16 Robot Scan Range 14 Terrain Scan Density 10 ECM Strength 1 Power Amplification 20 Evasion (%) 63 Item Schematics ----------------- Grenade Launcher | -8/Materials | Scanalyzed Robot Schematics ------------------ None Fabricated ------------ Nothing Alien Tech Used ----------------- None Achievements -------------- Everything Is Under Control Librarian Made in Tau Ceti IV Risk Taker Shopping List Challenges ------------ None Game ------ Seed SeismicShockNanoactuators Manual? 0 Play Time 01:11:38 Cumulative 4.5 hours Start 2024.03.12 @ 13:52:42 End 2024.03.12 @ 16:05:56 Sessions 2 Manual Loads 0 Difficulty Rogue Special Mode None Game No. 2 Rogue 2 Adventurer 0 Explorer 0 Win Type - Total 0 Types 0/0/0/0/0/0/0/0/0 Lore% 1 Gallery% 2 Achievement% 3 Wizard Run 0 Options --------- Layout 0 ASCII 1 Keyboard 1 Movement Vi Keybinds 0 Fullscreen 2 Font 18/X11 Map View 76x50 Zoom Use 0% Tactical HUD 1 Map Filters NONE Filters NONE Steam 1 RUN: 58e14191-a658-4aaa-9223-32d91829d63f